[Event "Titled Tuesday Blitz June 20 Late 2023"]
[White "Sviridov, Valery"]
[Black "Muradov, Soltan"]
[WhiteFideId "4120680"]
[BlackFideId "14002108"]
[WhiteElo "2457"]
[BlackElo "2163"]
[Result "1-0"]
[Round "1"]
[TimeControl "180+2"]
[Date "2023.06.20"]
[WhiteClock "0:01:46"]
[BlackClock "0:00:20"]
[Board "17"]

1. d4 {[%clk 0:02:59]}  Nf6 {[%clk 0:02:59]} 2. Nf3 {[%clk 0:02:59]}  g6 {[%clk 0:02:59]} 3. c4 {[%clk 0:02:58]}  Bg7 {[%clk 0:02:59]} 4. g3 {[%clk 0:02:59]}  O-O {[%clk 0:02:57]} 5. Bg2 {[%clk 0:02:59]}  d6 {[%clk 0:02:54]} 6. O-O {[%clk 0:03:00]}  Nc6 {[%clk 0:02:53]} 7. Nc3 {[%clk 0:03:00]}  e5 {[%clk 0:02:53]} 8. dxe5 {[%clk 0:03:00]}  dxe5 {[%clk 0:02:51]} 9. Bg5 {[%clk 0:02:59]}  Be6 {[%clk 0:02:48]} 10. Qa4 {[%clk 0:02:58]}  h6 {[%clk 0:02:31]} 11. Rfd1 {[%clk 0:02:58]}  Qe7 {[%clk 0:02:30]} 12. Bxf6 {[%clk 0:02:58]}  Bxf6 {[%clk 0:02:30]} 13. Nd2 {[%clk 0:02:58]}  Nd4 {[%clk 0:02:29]} 14. e3 {[%clk 0:02:49]}  Nc6 {[%clk 0:02:27]} 15. Nd5 {[%clk 0:02:47]}  Bxd5 {[%clk 0:02:24]} 16. cxd5 {[%clk 0:02:47]}  Nd8 {[%clk 0:02:20]} 17. Rac1 {[%clk 0:02:46]}  c6 {[%clk 0:02:14]} 18. dxc6 {[%clk 0:02:45]}  Nxc6 {[%clk 0:02:13]} 19. Bxc6 {[%clk 0:02:45]}  bxc6 {[%clk 0:02:14]} 20. Qxc6 {[%clk 0:02:43]}  Rab8 {[%clk 0:02:12]} 21. b3 {[%clk 0:02:42]}  Bg7 {[%clk 0:02:12]} 22. Qc7 {[%clk 0:02:39]}  Qa3 {[%clk 0:02:11]} 23. Qc2 {[%clk 0:02:39]}  h5 {[%clk 0:02:00]} 24. Nc4 {[%clk 0:02:39]}  Qa6 {[%clk 0:01:59]} 25. Rd6 {[%clk 0:02:37]}  Qb7 {[%clk 0:01:58]} 26. h4 {[%clk 0:02:33]}  Rbc8 {[%clk 0:01:50]} 27. Rcd1 {[%clk 0:02:33]}  Qf3 {[%clk 0:01:47]} 28. R1d2 {[%clk 0:02:25]}  Rfe8 {[%clk 0:01:20]} 29. Qd1 {[%clk 0:02:25]}  Qf5 {[%clk 0:01:10]} 30. Kg2 {[%clk 0:02:23]}  e4 {[%clk 0:01:06]} 31. R2d5 {[%clk 0:02:22]}  Be5 {[%clk 0:01:02]} 32. Rd7 {[%clk 0:02:18]}  Qf6 {[%clk 0:00:52]} 33. Rxa7 {[%clk 0:02:16]}  Rcd8 {[%clk 0:00:45]} 34. Nxe5 {[%clk 0:01:46]}  Rxd5 {[%clk 0:00:45]} 35. Qxd5 {[%clk 0:01:47]}  Rxe5 {[%clk 0:00:45]} 36. Rxf7 {[%clk 0:01:48]}  Qxf2+ {[%clk 0:00:36]} 37. Rxf2+ {[%clk 0:01:46]}  Rxd5 {[%clk 0:00:36]} 38. Rb2 {[%clk 0:01:47]}  Kf7 {[%clk 0:00:35]} 39. b4 {[%clk 0:01:47]}  Rd3 {[%clk 0:00:33]} 40. Kf2 {[%clk 0:01:47]}  Ke6 {[%clk 0:00:33]} 41. b5 {[%clk 0:01:47]}  Kd7 {[%clk 0:00:34]} 42. a4 {[%clk 0:01:44]}  Ra3 {[%clk 0:00:33]} 43. Rb4 {[%clk 0:01:45]}  Ra2+ {[%clk 0:00:33]} 44. Kg1 {[%clk 0:01:45]}  Ra1+ {[%clk 0:00:30]} 45. Kg2 {[%clk 0:01:46]}  Ra2+ {[%clk 0:00:20]} 46. Kh3 {[%clk 0:01:46]} 1-0


[Site "https://www.chess.com"]

[Event "Titled Tuesday Blitz June 20 Late 2023"]
[White "Ortega Amarelle, Mariano"]
[Black "Makhnev, Denis"]
[WhiteFideId "3504301"]
[BlackFideId "13707647"]
[WhiteElo "2392"]
[BlackElo "2515"]
[Result "1-0"]
[Round "1"]
[TimeControl "180+2"]
[Date "2023.06.20"]
[WhiteClock "0:00:09"]
[BlackClock "0:00:00"]
[Board "20"]

1. Nf3 {[%clk 0:02:58]}  d5 {[%clk 0:02:59]} 2. g3 {[%clk 0:02:59]}  Nd7 {[%clk 0:02:57]} 3. d4 {[%clk 0:02:57]}  Nb6 {[%clk 0:02:58]} 4. Bg2 {[%clk 0:02:56]}  Nf6 {[%clk 0:02:58]} 5. O-O {[%clk 0:02:56]}  Bf5 {[%clk 0:02:59]} 6. b3 {[%clk 0:02:53]}  e6 {[%clk 0:02:59]} 7. Bb2 {[%clk 0:02:54]}  Be7 {[%clk 0:02:58]} 8. Nbd2 {[%clk 0:02:54]}  O-O {[%clk 0:02:58]} 9. c4 {[%clk 0:02:54]}  c6 {[%clk 0:02:58]} 10. e3 {[%clk 0:02:52]}  h6 {[%clk 0:02:57]} 11. Qe2 {[%clk 0:02:52]}  Ne4 {[%clk 0:02:56]} 12. Rfd1 {[%clk 0:02:50]}  a5 {[%clk 0:02:53]} 13. a3 {[%clk 0:02:48]}  Bg4 {[%clk 0:02:51]} 14. c5 {[%clk 0:02:41]}  Nd7 {[%clk 0:02:49]} 15. h3 {[%clk 0:02:40]}  Bh5 {[%clk 0:02:49]} 16. b4 {[%clk 0:02:28]}  f5 {[%clk 0:02:49]} 17. Qd3 {[%clk 0:02:21]}  Nxd2 {[%clk 0:02:27]} 18. Rxd2 {[%clk 0:02:19]}  axb4 {[%clk 0:02:28]} 19. axb4 {[%clk 0:02:19]}  Rxa1+ {[%clk 0:02:29]} 20. Bxa1 {[%clk 0:02:19]}  Qa8 {[%clk 0:02:30]} 21. Qb1 {[%clk 0:02:16]}  Bf6 {[%clk 0:02:03]} 22. Ra2 {[%clk 0:02:14]}  Qb8 {[%clk 0:02:03]} 23. b5 {[%clk 0:01:56]}  Qc7 {[%clk 0:01:43]} 24. b6 {[%clk 0:01:48]}  Qb8 {[%clk 0:01:43]} 25. Ra7 {[%clk 0:01:44]}  g5 {[%clk 0:01:43]} 26. Nd2 {[%clk 0:01:38]}  Kg7 {[%clk 0:01:27]} 27. f4 {[%clk 0:01:29]}  Kh8 {[%clk 0:01:25]} 28. Kf2 {[%clk 0:01:16]}  gxf4 {[%clk 0:01:24]} 29. exf4 {[%clk 0:01:15]}  Re8 {[%clk 0:01:19]} 30. Nf3 {[%clk 0:01:13]}  Rg8 {[%clk 0:01:12]} 31. Qe1 {[%clk 0:01:06]}  Bf7 {[%clk 0:01:10]} 32. Qe3 {[%clk 0:01:02]}  Kh7 {[%clk 0:01:10]} 33. Ne5 {[%clk 0:00:59]}  Nxe5 {[%clk 0:01:09]} 34. dxe5 {[%clk 0:00:59]}  Be7 {[%clk 0:01:10]} 35. Bd4 {[%clk 0:01:00]}  Qc8 {[%clk 0:01:08]} 36. Bf1 {[%clk 0:00:59]}  Qd7 {[%clk 0:01:08]} 37. Bd3 {[%clk 0:00:58]}  Rb8 {[%clk 0:01:08]} 38. g4 {[%clk 0:00:56]}  Bg6 {[%clk 0:01:08]} 39. gxf5 {[%clk 0:00:56]}  Bh4+ {[%clk 0:01:04]} 40. Kf1 {[%clk 0:00:52]}  exf5 {[%clk 0:01:02]} 41. e6 {[%clk 0:00:48]}  Qe7 {[%clk 0:01:03]} 42. Qe5 {[%clk 0:00:47]}  Re8 {[%clk 0:01:03]} 43. Bxf5 {[%clk 0:00:42]}  Rf8 {[%clk 0:00:57]} 44. Bxg6+ {[%clk 0:00:19]}  Kxg6 {[%clk 0:00:58]} 45. Qd6 {[%clk 0:00:19]}  Re8 {[%clk 0:00:43]} 46. Qe5 {[%clk 0:00:12]}  Rf8 {[%clk 0:00:24]} 47. Kg2 {[%clk 0:00:12]}  Kh7 {[%clk 0:00:18]} 48. f5 {[%clk 0:00:11]}  Rg8+ {[%clk 0:00:18]} 49. Kh1 {[%clk 0:00:10]}  h5 {[%clk 0:00:11]} 50. f6 {[%clk 0:00:09]}  Bxf6 {[%clk 0:00:09]} 51. Qxf6 {[%clk 0:00:10]}  Qe8 {[%clk 0:00:00]} 52. Qf7+ {[%clk 0:00:09]} 1-0


[Site "https://www.chess.com"]

[Event "Titled Tuesday Blitz June 20 Late 2023"]
[White "Bortnyk, Mykola"]
[Black "Sztokbant, Bernardo Vainzoff"]
[WhiteFideId "14120836"]
[BlackFideId "2115956"]
[WhiteElo "2592"]
[BlackElo "2222"]
[Result "1-0"]
[Round "1"]
[TimeControl "180+2"]
[Date "2023.06.20"]
[WhiteClock "0:01:06"]
[BlackClock "0:00:00"]
[Board "21"]

1. d4 {[%clk 0:03:00]}  d5 {[%clk 0:03:00]} 2. e3 {[%clk 0:03:00]}  Nc6 {[%clk 0:02:58]} 3. Bd3 {[%clk 0:03:00]}  Nf6 {[%clk 0:02:57]} 4. f4 {[%clk 0:02:58]}  g6 {[%clk 0:02:57]} 5. Nf3 {[%clk 0:02:58]}  Bg7 {[%clk 0:02:58]} 6. O-O {[%clk 0:02:59]}  O-O {[%clk 0:02:59]} 7. c3 {[%clk 0:02:57]}  Bg4 {[%clk 0:02:58]} 8. a4 {[%clk 0:02:53]}  e6 {[%clk 0:02:56]} 9. Qe1 {[%clk 0:02:52]}  Bxf3 {[%clk 0:02:08]} 10. gxf3 {[%clk 0:02:48]}  Ne7 {[%clk 0:02:06]} 11. b3 {[%clk 0:02:44]}  Nd7 {[%clk 0:02:05]} 12. Kh1 {[%clk 0:02:37]}  c5 {[%clk 0:01:51]} 13. Ba3 {[%clk 0:02:36]}  Rc8 {[%clk 0:01:50]} 14. Nd2 {[%clk 0:02:35]}  Re8 {[%clk 0:01:39]} 15. Rg1 {[%clk 0:02:27]}  Nf5 {[%clk 0:01:31]} 16. e4 {[%clk 0:02:15]}  cxd4 {[%clk 0:01:22]} 17. exf5 {[%clk 0:02:15]}  exf5 {[%clk 0:01:23]} 18. Qg3 {[%clk 0:02:06]}  dxc3 {[%clk 0:01:23]} 19. Nf1 {[%clk 0:02:05]}  Nf6 {[%clk 0:01:12]} 20. Bxf5 {[%clk 0:01:55]}  Nh5 {[%clk 0:01:11]} 21. Qg4 {[%clk 0:01:48]}  Rc7 {[%clk 0:00:55]} 22. Bd3 {[%clk 0:01:44]}  d4 {[%clk 0:00:26]} 23. f5 {[%clk 0:01:42]}  Qd5 {[%clk 0:00:25]} 24. fxg6 {[%clk 0:01:35]}  hxg6 {[%clk 0:00:26]} 25. Bc4 {[%clk 0:01:34]}  Rxc4 {[%clk 0:00:23]} 26. bxc4 {[%clk 0:01:35]}  Qxc4 {[%clk 0:00:21]} 27. Bc1 {[%clk 0:01:24]}  Qd5 {[%clk 0:00:18]} 28. Rb1 {[%clk 0:01:16]}  d3 {[%clk 0:00:17]} 29. Rb5 {[%clk 0:01:17]}  Qc6 {[%clk 0:00:11]} 30. Rxh5 {[%clk 0:01:17]}  d2 {[%clk 0:00:11]} 31. Nxd2 {[%clk 0:01:16]}  cxd2 {[%clk 0:00:12]} 32. Bxd2 {[%clk 0:01:16]}  Re2 {[%clk 0:00:12]} 33. Bf4 {[%clk 0:01:12]}  Qc2 {[%clk 0:00:12]} 34. Rd5 {[%clk 0:01:07]}  Bf8 {[%clk 0:00:05]} 35. Rd8 {[%clk 0:01:06]}  Rg2 {[%clk 0:00:00]} 36. Qxg2 {[%clk 0:01:06]} 1-0


[Site "https://www.chess.com"]

[Event "Titled Tuesday Blitz June 20 Late 2023"]
[White "Michalik, Peter"]
[Black "Novikov, Evgenij"]
[WhiteFideId "14907526"]
[BlackFideId "4125380"]
[WhiteElo "2585"]
[BlackElo "2242"]
[Result "1/2-1/2"]
[Round "1"]
[TimeControl "180+2"]
[Date "2023.06.20"]
[WhiteClock "0:00:05"]
[BlackClock "0:00:03"]
[Board "23"]

1. d4 {[%clk 0:02:44]}  d5 {[%clk 0:02:58]} 2. c4 {[%clk 0:02:44]}  e6 {[%clk 0:02:58]} 3. Nf3 {[%clk 0:02:44]}  Nf6 {[%clk 0:02:59]} 4. Nc3 {[%clk 0:02:42]}  Nbd7 {[%clk 0:02:58]} 5. cxd5 {[%clk 0:02:40]}  exd5 {[%clk 0:02:58]} 6. Bf4 {[%clk 0:02:41]}  c6 {[%clk 0:02:56]} 7. e3 {[%clk 0:02:40]}  g6 {[%clk 0:02:56]} 8. h3 {[%clk 0:02:38]}  Bg7 {[%clk 0:02:56]} 9. Be2 {[%clk 0:02:36]}  O-O {[%clk 0:02:56]} 10. O-O {[%clk 0:02:37]}  Re8 {[%clk 0:02:56]} 11. b4 {[%clk 0:02:36]}  a6 {[%clk 0:02:55]} 12. a4 {[%clk 0:02:35]}  Nf8 {[%clk 0:02:48]} 13. b5 {[%clk 0:02:35]}  axb5 {[%clk 0:02:48]} 14. axb5 {[%clk 0:02:36]}  Rxa1 {[%clk 0:02:48]} 15. Qxa1 {[%clk 0:02:36]}  Ne6 {[%clk 0:02:48]} 16. Be5 {[%clk 0:02:36]}  Bd7 {[%clk 0:02:41]} 17. bxc6 {[%clk 0:02:34]}  bxc6 {[%clk 0:02:40]} 18. Qa7 {[%clk 0:02:33]}  Qa8 {[%clk 0:02:23]} 19. Ra1 {[%clk 0:02:32]}  Qxa7 {[%clk 0:02:23]} 20. Rxa7 {[%clk 0:02:33]}  Rd8 {[%clk 0:02:15]} 21. Na4 {[%clk 0:02:25]}  Be8 {[%clk 0:02:07]} 22. Nb6 {[%clk 0:02:02]}  Nd7 {[%clk 0:02:00]} 23. Nxd7 {[%clk 0:02:01]}  Rxd7 {[%clk 0:01:59]} 24. Ra8 {[%clk 0:01:59]}  Rd8 {[%clk 0:01:59]} 25. Ra7 {[%clk 0:01:47]}  Rd7 {[%clk 0:01:59]} 26. Ra5 {[%clk 0:01:43]}  Rd8 {[%clk 0:01:49]} 27. Bg3 {[%clk 0:01:40]}  Bf8 {[%clk 0:01:41]} 28. Ne5 {[%clk 0:01:30]}  f6 {[%clk 0:01:31]} 29. Nd3 {[%clk 0:01:28]}  Bd6 {[%clk 0:01:31]} 30. Bg4 {[%clk 0:01:26]}  f5 {[%clk 0:01:20]} 31. Bxd6 {[%clk 0:01:25]}  fxg4 {[%clk 0:01:16]} 32. Bg3 {[%clk 0:01:16]}  gxh3 {[%clk 0:01:15]} 33. gxh3 {[%clk 0:01:16]}  Ng5 {[%clk 0:00:59]} 34. Kg2 {[%clk 0:01:15]}  Ne4 {[%clk 0:00:57]} 35. Ra7 {[%clk 0:01:10]}  Rd7 {[%clk 0:00:55]} 36. Ra8 {[%clk 0:01:09]}  Re7 {[%clk 0:00:52]} 37. Be5 {[%clk 0:01:01]}  Kf7 {[%clk 0:00:32]} 38. f3 {[%clk 0:00:57]}  Nf6 {[%clk 0:00:31]} 39. Kf2 {[%clk 0:00:52]}  Nd7 {[%clk 0:00:29]} 40. h4 {[%clk 0:00:47]}  Nxe5 {[%clk 0:00:28]} 41. Nxe5+ {[%clk 0:00:47]}  Kf6 {[%clk 0:00:26]} 42. Rc8 {[%clk 0:00:45]}  Re6 {[%clk 0:00:24]} 43. Rc7 {[%clk 0:00:45]}  Re7 {[%clk 0:00:22]} 44. Rc8 {[%clk 0:00:42]}  Re6 {[%clk 0:00:22]} 45. Kg3 {[%clk 0:00:41]}  h6 {[%clk 0:00:20]} 46. Ng4+ {[%clk 0:00:35]}  Kg7 {[%clk 0:00:20]} 47. Rc7+ {[%clk 0:00:35]}  Bf7 {[%clk 0:00:17]} 48. Ne5 {[%clk 0:00:35]}  Rf6 {[%clk 0:00:16]} 49. Nxc6 {[%clk 0:00:35]}  Kg8 {[%clk 0:00:13]} 50. Ne5 {[%clk 0:00:33]}  Be6 {[%clk 0:00:13]} 51. Rc6 {[%clk 0:00:31]}  Kg7 {[%clk 0:00:13]} 52. Rb6 {[%clk 0:00:30]}  Bf5 {[%clk 0:00:12]} 53. Rb7+ {[%clk 0:00:30]}  Kg8 {[%clk 0:00:11]} 54. Rb8+ {[%clk 0:00:29]}  Rf8 {[%clk 0:00:10]} 55. Rb5 {[%clk 0:00:28]}  Rd8 {[%clk 0:00:08]} 56. Rb6 {[%clk 0:00:26]}  Kg7 {[%clk 0:00:08]} 57. Kf4 {[%clk 0:00:24]}  Bc2 {[%clk 0:00:06]} 58. Rb7+ {[%clk 0:00:23]}  Kf6 {[%clk 0:00:05]} 59. Rf7+ {[%clk 0:00:23]}  Ke6 {[%clk 0:00:05]} 60. Rh7 {[%clk 0:00:23]}  g5+ {[%clk 0:00:05]} 61. hxg5 {[%clk 0:00:20]}  hxg5+ {[%clk 0:00:06]} 62. Kxg5 {[%clk 0:00:20]}  Bxh7 {[%clk 0:00:07]} 63. Ng4 {[%clk 0:00:20]}  Rf8 {[%clk 0:00:07]} 64. Ne5 {[%clk 0:00:19]}  Bf5 {[%clk 0:00:07]} 65. Kf4 {[%clk 0:00:19]}  Be4+ {[%clk 0:00:06]} 66. Kg3 {[%clk 0:00:20]}  Bc2 {[%clk 0:00:06]} 67. Ng4 {[%clk 0:00:19]}  Rg8 {[%clk 0:00:05]} 68. Kf4 {[%clk 0:00:20]}  Rf8+ {[%clk 0:00:04]} 69. Kg3 {[%clk 0:00:20]}  Bd1 {[%clk 0:00:04]} 70. Ne5 {[%clk 0:00:20]}  Rg8+ {[%clk 0:00:04]} 71. Kf4 {[%clk 0:00:21]}  Kf6 {[%clk 0:00:04]} 72. Nd7+ {[%clk 0:00:20]}  Ke7 {[%clk 0:00:04]} 73. Ne5 {[%clk 0:00:20]}  Rf8+ {[%clk 0:00:05]} 74. Kg3 {[%clk 0:00:20]}  Ke6 {[%clk 0:00:05]} 75. Kf2 {[%clk 0:00:19]}  Bb3 {[%clk 0:00:05]} 76. Nd3 {[%clk 0:00:19]}  Bc4 {[%clk 0:00:05]} 77. Ne5 {[%clk 0:00:17]}  Kf5 {[%clk 0:00:05]} 78. Nd7 {[%clk 0:00:14]}  Ra8 {[%clk 0:00:05]} 79. Ne5 {[%clk 0:00:12]}  Ra2+ {[%clk 0:00:06]} 80. Kg3 {[%clk 0:00:12]}  Be2 {[%clk 0:00:06]} 81. Nc6 {[%clk 0:00:09]}  Bd1 {[%clk 0:00:06]} 82. Ne7+ {[%clk 0:00:09]}  Ke6 {[%clk 0:00:05]} 83. Ng6 {[%clk 0:00:09]}  Rd2 {[%clk 0:00:05]} 84. Nf4+ {[%clk 0:00:09]}  Kd6 {[%clk 0:00:06]} 85. Ng6 {[%clk 0:00:09]}  Rd3 {[%clk 0:00:05]} 86. Kf4 {[%clk 0:00:10]}  Ra3 {[%clk 0:00:05]} 87. Ne5 {[%clk 0:00:10]}  Bc2 {[%clk 0:00:05]} 88. Nf7+ {[%clk 0:00:10]}  Ke6 {[%clk 0:00:05]} 89. Ne5 {[%clk 0:00:11]}  Ra1 {[%clk 0:00:05]} 90. Kg3 {[%clk 0:00:10]}  Rg1+ {[%clk 0:00:04]} 91. Kf2 {[%clk 0:00:10]}  Rg7 {[%clk 0:00:05]} 92. Nc6 {[%clk 0:00:10]}  Kf5 {[%clk 0:00:05]} 93. Nb4 {[%clk 0:00:09]}  Bb1 {[%clk 0:00:05]} 94. Nxd5 {[%clk 0:00:09]}  Rd7 {[%clk 0:00:04]} 95. Nc3 {[%clk 0:00:09]}  Bd3 {[%clk 0:00:03]} 96. Ke1 {[%clk 0:00:10]}  Kg5 {[%clk 0:00:03]} 97. Kd2 {[%clk 0:00:10]}  Bf5 {[%clk 0:00:02]} 98. Ke2 {[%clk 0:00:10]}  Bg6 {[%clk 0:00:03]} 99. Kf2 {[%clk 0:00:10]}  Kh4 {[%clk 0:00:03]} 100. Ne2 {[%clk 0:00:10]}  Rf7 {[%clk 0:00:03]} 101. Nc3 {[%clk 0:00:09]}  Bh5 {[%clk 0:00:03]} 102. f4 {[%clk 0:00:07]}  Rg7 {[%clk 0:00:03]} 103. Ne4 {[%clk 0:00:06]}  Kh3 {[%clk 0:00:03]} 104. Ng5+ {[%clk 0:00:06]}  Kg4 {[%clk 0:00:03]} 105. Ne6 {[%clk 0:00:06]}  Rb7 {[%clk 0:00:03]} 106. Ke2 {[%clk 0:00:06]}  Rb3 {[%clk 0:00:03]} 107. Nc5 {[%clk 0:00:06]}  Kf5+ {[%clk 0:00:02]} 108. Kd2 {[%clk 0:00:07]}  Rb2+ {[%clk 0:00:03]} 109. Kd3 {[%clk 0:00:07]}  Re2 {[%clk 0:00:03]} 110. Nb7 {[%clk 0:00:06]}  Rf2 {[%clk 0:00:03]} 111. Nd6+ {[%clk 0:00:06]}  Ke6 {[%clk 0:00:04]} 112. Ne4 {[%clk 0:00:07]}  Rf1 {[%clk 0:00:04]} 113. Ng3 {[%clk 0:00:07]}  Rd1+ {[%clk 0:00:03]} 114. Ke4 {[%clk 0:00:07]}  Bg4 {[%clk 0:00:04]} 115. f5+ {[%clk 0:00:04]}  Kf6 {[%clk 0:00:05]} 116. Kf4 {[%clk 0:00:04]}  Bh3 {[%clk 0:00:05]} 117. Ne4+ {[%clk 0:00:03]}  Ke7 {[%clk 0:00:04]} 118. Ke5 {[%clk 0:00:03]}  Rf1 {[%clk 0:00:04]} 119. f6+ {[%clk 0:00:03]}  Kf8 {[%clk 0:00:04]} 120. Ng5 {[%clk 0:00:04]}  Bg4 {[%clk 0:00:04]} 121. e4 {[%clk 0:00:04]}  Re1 {[%clk 0:00:03]} 122. d5 {[%clk 0:00:03]}  Rf1 {[%clk 0:00:03]} 123. Nh7+ {[%clk 0:00:03]}  Kf7 {[%clk 0:00:03]} 124. Ng5+ {[%clk 0:00:03]}  Kg6 {[%clk 0:00:03]} 125. Ne6 {[%clk 0:00:04]}  Rxf6 {[%clk 0:00:03]} 126. Nd4 {[%clk 0:00:05]}  Rf1 {[%clk 0:00:02]} 127. Kd6 {[%clk 0:00:05]}  Re1 {[%clk 0:00:02]} 128. e5 {[%clk 0:00:05]}  Bf5 {[%clk 0:00:02]} 129. Nc6 {[%clk 0:00:05]}  Bg4 {[%clk 0:00:02]} 130. Ne7+ {[%clk 0:00:04]}  Kf7 {[%clk 0:00:02]} 131. Nc6 {[%clk 0:00:04]}  Bh3 {[%clk 0:00:02]} 132. Nd4 {[%clk 0:00:04]}  Kg6 {[%clk 0:00:02]} 133. Nf3 {[%clk 0:00:04]}  Re3 {[%clk 0:00:02]} 134. Nd4 {[%clk 0:00:05]}  Kg5 {[%clk 0:00:02]} 135. Nc6 {[%clk 0:00:06]}  Kf4 {[%clk 0:00:03]} 136. e6 {[%clk 0:00:06]}  Bxe6 {[%clk 0:00:02]} 137. dxe6 {[%clk 0:00:05]}  Rxe6+ {[%clk 0:00:03]} 138. Kxe6 {[%clk 0:00:05]} 1/2-1/2


[Site "https://www.chess.com"]

[Event "Titled Tuesday Blitz June 20 Late 2023"]
[White "Haszon, David"]
[Black "Rasulov, Vugar"]
[WhiteFideId "733610"]
[BlackFideId "13402390"]
[WhiteElo "2210"]
[BlackElo "2509"]
[Result "0-1"]
[Round "1"]
[TimeControl "180+2"]
[Date "2023.06.20"]
[WhiteClock "0:00:09"]
[BlackClock "0:01:00"]
[Board "24"]

1. d4 {[%clk 0:02:58]}  Nf6 {[%clk 0:02:59]} 2. Nf3 {[%clk 0:02:56]}  d5 {[%clk 0:02:59]} 3. Bf4 {[%clk 0:02:57]}  c5 {[%clk 0:02:58]} 4. e3 {[%clk 0:02:57]}  Nc6 {[%clk 0:02:59]} 5. Nbd2 {[%clk 0:02:56]}  cxd4 {[%clk 0:02:57]} 6. exd4 {[%clk 0:02:56]}  e6 {[%clk 0:02:57]} 7. c3 {[%clk 0:02:56]}  Nh5 {[%clk 0:02:57]} 8. Bg5 {[%clk 0:02:54]}  f6 {[%clk 0:02:56]} 9. Bh4 {[%clk 0:02:54]}  g6 {[%clk 0:02:55]} 10. Be2 {[%clk 0:02:50]}  Nf4 {[%clk 0:02:54]} 11. O-O {[%clk 0:02:46]}  Bd6 {[%clk 0:02:54]} 12. Bg3 {[%clk 0:02:45]}  O-O {[%clk 0:02:53]} 13. Re1 {[%clk 0:02:44]}  Nxe2+ {[%clk 0:02:45]} 14. Qxe2 {[%clk 0:02:44]}  Kg7 {[%clk 0:02:44]} 15. c4 {[%clk 0:02:28]}  Ne7 {[%clk 0:02:35]} 16. c5 {[%clk 0:02:22]}  Bc7 {[%clk 0:02:32]} 17. b4 {[%clk 0:02:20]}  Nf5 {[%clk 0:02:32]} 18. a4 {[%clk 0:02:09]}  Nxg3 {[%clk 0:02:27]} 19. hxg3 {[%clk 0:02:10]}  Re8 {[%clk 0:02:27]} 20. Rad1 {[%clk 0:02:02]}  Bd7 {[%clk 0:02:22]} 21. b5 {[%clk 0:02:00]}  Qe7 {[%clk 0:02:16]} 22. Qd3 {[%clk 0:01:56]}  Qf7 {[%clk 0:02:15]} 23. Nb3 {[%clk 0:01:48]}  Re7 {[%clk 0:02:11]} 24. g4 {[%clk 0:01:41]}  h6 {[%clk 0:02:09]} 25. g3 {[%clk 0:01:41]}  Rae8 {[%clk 0:02:10]} 26. Kg2 {[%clk 0:01:41]}  g5 {[%clk 0:01:57]} 27. a5 {[%clk 0:01:29]}  Bb8 {[%clk 0:01:53]} 28. b6 {[%clk 0:01:17]}  a6 {[%clk 0:01:52]} 29. Rh1 {[%clk 0:01:13]}  e5 {[%clk 0:01:43]} 30. dxe5 {[%clk 0:00:44]}  fxe5 {[%clk 0:01:44]} 31. Nxg5 {[%clk 0:00:34]}  Qg6 {[%clk 0:01:44]} 32. Qxg6+ {[%clk 0:00:32]}  Kxg6 {[%clk 0:01:45]} 33. Nf3 {[%clk 0:00:28]}  d4 {[%clk 0:01:46]} 34. Rhe1 {[%clk 0:00:12]}  Bxg4 {[%clk 0:01:42]} 35. Rc1 {[%clk 0:00:09]}  Bd7 {[%clk 0:01:39]} 36. Nbd2 {[%clk 0:00:08]}  Bc6 {[%clk 0:01:39]} 37. Ne4 {[%clk 0:00:09]}  Rf8 {[%clk 0:01:35]} 38. Nh4+ {[%clk 0:00:09]}  Kg7 {[%clk 0:01:35]} 39. f3 {[%clk 0:00:10]}  d3 {[%clk 0:01:25]} 40. Rcd1 {[%clk 0:00:10]}  Rd7 {[%clk 0:01:26]} 41. Re3 {[%clk 0:00:10]}  Rfd8 {[%clk 0:01:13]} 42. g4 {[%clk 0:00:10]}  Kh7 {[%clk 0:01:09]} 43. Nf5 {[%clk 0:00:11]}  d2 {[%clk 0:01:03]} 44. Kf2 {[%clk 0:00:11]}  Ba4 {[%clk 0:01:02]} 45. Rh1 {[%clk 0:00:08]}  d1=Q {[%clk 0:00:58]} 46. Rxh6+ {[%clk 0:00:09]}  Kg8 {[%clk 0:00:59]} 47. Rg6+ {[%clk 0:00:09]}  Kf8 {[%clk 0:00:57]} 48. Rf6+ {[%clk 0:00:10]}  Rf7 {[%clk 0:00:58]} 49. Rxf7+ {[%clk 0:00:10]}  Kxf7 {[%clk 0:00:59]} 50. Nfd6+ {[%clk 0:00:10]}  Bxd6 {[%clk 0:00:58]} 51. Nxd6+ {[%clk 0:00:10]}  Rxd6 {[%clk 0:00:59]} 52. cxd6 {[%clk 0:00:09]}  Qxd6 {[%clk 0:01:00]} 0-1


[Site "https://www.chess.com"]

[Event "Titled Tuesday Blitz June 20 Late 2023"]
[White "Anton Guijarro, David"]
[Black "Delorme, Axel"]
[WhiteFideId "2285525"]
[BlackFideId "632023"]
[WhiteElo "2618"]
[BlackElo "2478"]
[Result "1-0"]
[Round "1"]
[TimeControl "180+2"]
[Date "2023.06.20"]
[WhiteClock "0:00:05"]
[BlackClock "0:00:00"]
[Board "25"]

1. Nf3 {[%clk 0:03:00]}  d5 {[%clk 0:02:57]} 2. c4 {[%clk 0:03:00]}  e6 {[%clk 0:02:56]} 3. g3 {[%clk 0:03:00]}  d4 {[%clk 0:02:51]} 4. Bg2 {[%clk 0:02:59]}  c5 {[%clk 0:02:52]} 5. e3 {[%clk 0:02:52]}  Nc6 {[%clk 0:02:52]} 6. exd4 {[%clk 0:02:53]}  cxd4 {[%clk 0:02:53]} 7. O-O {[%clk 0:02:53]}  Nf6 {[%clk 0:02:52]} 8. d3 {[%clk 0:02:54]}  Nd7 {[%clk 0:02:50]} 9. Na3 {[%clk 0:02:52]}  Be7 {[%clk 0:02:28]} 10. Nc2 {[%clk 0:02:51]}  e5 {[%clk 0:02:23]} 11. Re1 {[%clk 0:02:29]}  a5 {[%clk 0:02:13]} 12. b3 {[%clk 0:02:23]}  O-O {[%clk 0:02:11]} 13. Ba3 {[%clk 0:02:17]}  Bxa3 {[%clk 0:02:05]} 14. Nxa3 {[%clk 0:02:17]}  Re8 {[%clk 0:02:03]} 15. Nd2 {[%clk 0:02:08]}  Nc5 {[%clk 0:02:03]} 16. Ne4 {[%clk 0:02:08]}  Nxe4 {[%clk 0:02:01]} 17. Bxe4 {[%clk 0:02:09]}  Qe7 {[%clk 0:01:35]} 18. Nb5 {[%clk 0:02:09]}  Be6 {[%clk 0:00:58]} 19. a3 {[%clk 0:01:48]}  g6 {[%clk 0:00:45]} 20. Qd2 {[%clk 0:01:45]}  Kg7 {[%clk 0:00:44]} 21. Bg2 {[%clk 0:01:26]}  Rac8 {[%clk 0:00:35]} 22. f4 {[%clk 0:01:19]}  Qc5 {[%clk 0:00:32]} 23. Bxc6 {[%clk 0:01:03]}  Qxc6 {[%clk 0:00:25]} 24. fxe5 {[%clk 0:00:48]}  Rcd8 {[%clk 0:00:20]} 25. Nd6 {[%clk 0:00:43]}  Re7 {[%clk 0:00:17]} 26. Qg5 {[%clk 0:00:42]}  Bh3 {[%clk 0:00:13]} 27. Qf6+ {[%clk 0:00:37]}  Kg8 {[%clk 0:00:12]} 28. Ra2 {[%clk 0:00:36]}  Qxd6 {[%clk 0:00:09]} 29. Qxd6 {[%clk 0:00:18]}  Rxd6 {[%clk 0:00:09]} 30. exd6 {[%clk 0:00:19]}  Rxe1+ {[%clk 0:00:09]} 31. Kf2 {[%clk 0:00:20]}  Re6 {[%clk 0:00:10]} 32. c5 {[%clk 0:00:20]}  Kf8 {[%clk 0:00:10]} 33. b4 {[%clk 0:00:20]}  axb4 {[%clk 0:00:11]} 34. axb4 {[%clk 0:00:21]}  Bf5 {[%clk 0:00:08]} 35. Ra7 {[%clk 0:00:11]}  Bxd3 {[%clk 0:00:04]} 36. Rxb7 {[%clk 0:00:12]}  Bf5 {[%clk 0:00:02]} 37. Ra7 {[%clk 0:00:07]}  Re8 {[%clk 0:00:02]} 38. c6 {[%clk 0:00:06]}  d3 {[%clk 0:00:00]} 39. d7 {[%clk 0:00:05]} 1-0


[Site "https://www.chess.com"]